[Event "VIII Open Semana Santa-B 2024"]
[Site "San Vicente del Raspeig"]
[Date "2024.03.31"]
[Round "7.7"]
[White "Portillo Alcalde, Jose Maria"]
[Black "Vila Castillo, Jaime"]
[Result "0-1"]
[ECO "D30"]
[WhiteElo "1632"]
[BlackElo "1812"]
[Annotator "NA RC"]
[PlyCount "110"]
[EventDate "2024.03.27"]
[EventType "swiss"]
[EventCountry "ESP"]
[SourceTitle "playchess.com"]
[Source "ChessBase"]
[SourceQuality "1"]
[TimeControl "5400+30"]

1. c4 {[%emt 0:00:03]} e6 {[%emt 0:01:38]} 2. g3 {[%emt 0:00:14]} Nf6 {[%emt 0:00:16]} 3. Bg2 {[%emt 0:00:06]} d5 {[%emt 0:00:08]} 4. Nf3 {[%emt 0:00:23]} c5 {[%emt 0:01:53]} 5. O-O {[%emt 0:01:54]} Nc6 {[%emt 0:00:21]} 6. cxd5 {[%emt 0:08:47]} exd5 {[%emt 0:00:37]} 7. d4 {[%emt 0:03:19]} Be6 {[%emt 0:03:13]} 8. a3 {[%emt 0:06:12]} c4 {[%emt 0:05:21]} 9. Nc3 {[%emt 0:04:23]} Be7 {[%emt 0:01:12]} 10. Re1 {[%emt 0:07:17]} Nd7 {[%emt 0:14:03]} 11. b3 {[%emt 0:02:00]} cxb3 {[%emt 0:03:22]} 12. Qxb3 {[%emt 0:00:17]} Nb6 {[%emt 0:00:23]} 13. Qd1 {[%emt 0:03:27]} Bf6 {[%emt 0:05:17]} 14. Bf4 {[%emt 0:04:04]} O-O {[%emt 0:00:44]} 15. Nb5 {[%emt 0:04:17]} Qd7 {[%emt 0:13:19]} 16. Nc7 {[%emt 0:04:49]} Rac8 {[%emt 0:00:56]} 17. Nxe6 {[%emt 0:00:38]} Qxe6 {[%emt 0:00:55]} 18. Qd2 {[%emt 0:00:28]} Nc4 {[%emt 0:07:47]} 19. Qd3 {[%emt 0:03:11]} Rfe8 {[%emt 0:11:36]} 20. Bg5 {[%emt 0:03:19]} Nd6 {[%emt 0:04:11]} 21. Bxf6 {[%emt 0:04:31]} Qxf6 {[%emt 0:01:09]} 22. e3 {[%emt 0:03:52]} Ne4 {[%emt 0:00:53]} 23. Ra2 {[%emt 0:02:08]} Qd6 {[%emt 0:03:01]} 24. Nd2 {[%emt 0:01:43]} f5 {[%emt 0:01:03]} 25. f3 {[%emt 0:02:14]} Nxd2 {[%emt 0:00:30]} 26. Qxd2 {[%emt 0:02:24]} Re7 {[%emt 0:01:26]} 27. Bh3 {[%emt 0:04:46]} Rf8 {[%emt 0:02:15]} 28. Re2 {[%emt 0:03:58]} g6 {[%emt 0:00:44]} 29. Bg2 {[%emt 0:00:49]} Rfe8 {[%emt 0:02:46]} 30. Qd3 {[%emt 0:00:32]} a6 {[%emt 0:00:30]} 31. Ra1 {[%emt 0:00:30]} Qf6 {[%emt 0:02:34]} 32. Rae1 {[%emt 0:03:11]} b5 {[%emt 0:01:17]} 33. Kf2 {[%emt 0:03:35]} Na5 {[%emt 0:01:21]} 34. Qc3 {[%emt 0:00:35]} Nc4 {[%emt 0:00:16]} 35. Qb4 {[%emt 0:01:52]} Qd6 {[%emt 0:01:10]} 36. Qxd6 {[%emt 0:01:01]} Nxd6 {[%emt 0:00:01]} 37. f4 {[%emt 0:12:11]} Ne4+ {[%emt 0:00:30]} 38. Bxe4 {[%emt 0:00:00]} fxe4 {[%emt 0:00:23]} 39. Rc1 {[%emt 0:01:00]} Rb7 {[%emt 0:02:04]} 40. Rec2 {[%emt 0:00:30]} Rb6 {[%emt 0:09:25]} 41. Rc5 {[%emt 0:00:30]} Rd6 {[%emt 0:00:30]} 42. Rc8 {[%emt 0:00:30]} Rxc8 {[%emt 0:00:00]} 43. Rxc8+ {[%emt 0:00:00]} Kg7 {[%emt 0:01:00]} 44. Rc5 {[%emt 0:01:00]} Kf6 {[%emt 0:00:30]} 45. g4 {[%emt 0:00:00]} Ke6 {[%emt 0:00:00]} 46. h4 {[%emt 0:00:00]} Rd7 {[%emt 0:00:00]} 47. Ke2 {[%emt 0:00:00]} Kd6 {[%emt 0:00:00]} 48. Kd2 {[%emt 0:00:00]} Rc7 {[%emt 0:01:04]} 49. Rxc7 {[%emt 0:00:00]} Kxc7 {[%emt 0:00:01]} 50. Kc3 {[%emt 0:00:00]} a5 {[%emt 0:00:04]} 51. Kb3 {[%emt 0:00:00]} Kd6 {[%emt 0:00:11]} 52. Kc3 {[%emt 0:00:00]} Ke6 {[%emt 0:00:06]} 53. Kb3 {[%emt 0:00:00]} h6 {[%emt 0:00:45]} 54. h5 {[%emt 0:00:18]} gxh5 {[%emt 0:00:13]} 55. gxh5 {[%emt 0:05:12]} Kf5 {[%emt 0:00:04]} 0-1

[Event "VIII Open Semana Santa-B 2024"]
[Site "San Vicente del Raspeig"]
[Date "2024.03.31"]
[Round "7.8"]
[White "Martinez Mateos, Saul"]
[Black "Prochaieva, Tina"]
[Result "1/2-1/2"]
[ECO "B41"]
[WhiteElo "1754"]
[BlackElo "1792"]
[Annotator "NA RC COMBH"]
[PlyCount "54"]
[EventDate "2024.03.27"]
[EventType "swiss"]
[EventCountry "ESP"]
[SourceTitle "playchess.com"]
[Source "ChessBase"]
[SourceQuality "1"]
[TimeControl "5400+30"]

1. e4 {[%emt 0:00:15]} c5 {[%emt 0:00:32]} 2. Nf3 {[%emt 0:00:15]} e6 {[%emt 0:00:10]} 3. d4 cxd4 {[%emt 0:00:16]} 4. Nxd4 {[%emt 0:00:18]} a6 {[%emt 0:00:10]} 5. c4 {[%emt 0:00:10]} Bb4+ {[%emt 0:02:05]} 6. Nc3 {[%emt 0:03:42]} Ne7 {[%emt 0:12:36]} 7. Be3 {[%emt 0:06:52]} Qc7 {[%emt 0:06:21]} 8. Be2 {[%emt 0:06:31]} Nbc6 {[%emt 0:07:51]} 9. O-O {[%emt 0:13:28]} O-O {[%emt 0:02:39]} 10. Qd2 {[%emt 0:11:07]} Rd8 {[%emt 0:06:59]} 11. a3 {[%emt 0:08:56]} Nxd4 {[%emt 0:04:10]} 12. Bxd4 {[%emt 0:12:31]} Bc5 {[%emt 0:06:42]} 13. b4 {[%emt 0:02:06]} Bxd4 {[%emt 0:00:59]} 14. Qxd4 {[%emt 0:00:13]} Nc6 {[%emt 0:00:48]} 15. Qd2 {[%emt 0:01:17]} d6 {[%emt 0:04:09]} 16. Rfd1 {[%emt 0:02:23]} Ne5 {[%emt 0:05:08]} 17. c5 {[%emt 0:00:51]} b5 {[%emt 0:08:08]} 18. cxd6 {[%emt 0:03:21]} Qb6 {[%emt 0:01:01]} 19. Qd4 {[%emt 0:04:21]} Qxd4 {[%emt 0:00:55]} 20. Rxd4 {[%emt 0:00:19]} Nc6 {[%emt 0:00:57]} 21. Rd2 {[%emt 0:00:35]} e5 {[%emt 0:01:39]} 22. f4 {[%emt 0:04:42]} Nd4 {[%emt 0:03:02]} 23. Rad1 {[%emt 0:02:42]} f6 {[%emt 0:00:31]} 24. fxe5 fxe5 25. Nd5 {[%emt 0:16:05]} Rxd6 {[%emt 0:25:12]} 26. Ne7+ Kf7 {[%emt 0:00:30]} 27. Nxc8 {[%emt 0:01:00]} Rxc8 {[%emt 0:00:30]} 1/2-1/2

[Event "VIII Open Semana Santa-B 2024"]
[Site "San Vicente del Raspeig"]
[Date "2024.03.31"]
[Round "8.1"]
[White "Zhuravlev, Matvey R"]
[Black "Amoros Moran, Jose Joaquin"]
[Result "1/2-1/2"]
[ECO "E18"]
[WhiteElo "1774"]
[BlackElo "1883"]
[Annotator "NA RC COMBH"]
[PlyCount "116"]
[EventDate "2024.03.27"]
[EventType "swiss"]
[EventCountry "ESP"]
[SourceTitle "playchess.com"]
[Source "ChessBase"]
[SourceQuality "1"]
[TimeControl "5400+30"]

1. d4 {[%emt 0:00:01]} Nf6 {[%emt 0:04:23]} 2. c4 {[%emt 0:00:09]} e6 {[%emt 0:00:12]} 3. g3 {[%emt 0:00:06]} d5 {[%emt 0:02:15]} 4. Nf3 {[%emt 0:00:06]} b6 {[%emt 0:00:26]} 5. cxd5 {[%emt 0:00:11]} exd5 {[%emt 0:00:10]} 6. Bg2 {[%emt 0:00:05]} Bb7 {[%emt 0:01:20]} 7. O-O {[%emt 0:00:09]} Be7 {[%emt 0:00:34]} 8. Nc3 {[%emt 0:00:22]} O-O {[%emt 0:00:56]} 9. Ne5 {[%emt 0:00:10]} h6 {[%emt 0:05:49]} 10. Qa4 {[%emt 0:07:06]} a6 {[%emt 0:01:07]} 11. Bf4 {[%emt 0:04:09]} Bd6 {[%emt 0:05:16]} 12. Rfd1 {[%emt 0:07:51]} Qe8 {[%emt 0:04:17]} 13. Qb3 {[%emt 0:02:47]} Qe6 {[%emt 0:02:25]} 14. Rac1 {[%emt 0:03:36]} Rd8 {[%emt 0:12:18]} 15. Na4 {[%emt 0:24:18]} g5 {[%emt 0:13:40]} 16. Be3 {[%emt 0:02:07]} Nfd7 {[%emt 0:09:43]} 17. Nxd7 {[%emt 0:01:39]} Nxd7 {[%emt 0:02:16]} 18. Nc5 {[%emt 0:01:12]} bxc5 {[%emt 0:12:50]} 19. Qxb7 {[%emt 0:00:17]} Rab8 {[%emt 0:05:17]} 20. Qxd5 {[%emt 0:01:17]} Qxd5 {[%emt 0:01:57]} 21. Bxd5 {[%emt 0:00:11]} cxd4 {[%emt 0:04:01]} 22. Bxd4 {[%emt 0:00:55]} Nb6 {[%emt 0:03:36]} 23. Bc6 {[%emt 0:02:47]} Kf8 {[%emt 0:02:09]} 24. Bf6 {[%emt 0:01:33]} Be7 {[%emt 0:01:13]} 25. Be5 {[%emt 0:00:26]} Rxd1+ {[%emt 0:01:26]} 26. Rxd1 {[%emt 0:00:11]} Nc4 {[%emt 0:00:52]} 27. Bd4 {[%emt 0:03:04]} Nxb2 {[%emt 0:02:03]} 28. Rc1 {[%emt 0:05:41]} Na4 {[%emt 0:01:20]} 29. Bxa4 {[%emt 0:06:38]} Rb4 {[%emt 0:00:10]} 30. Bb3 {[%emt 0:00:16]} Rxd4 {[%emt 0:00:11]} 31. Rxc7 {[%emt 0:00:05]} Rd6 {[%emt 0:00:50]} 32. Ra7 {[%emt 0:00:19]} Rf6 {[%emt 0:00:11]} 33. e3 {[%emt 0:01:15]} Bb4 {[%emt 0:00:23]} 34. Kf1 {[%emt 0:01:40]} a5 {[%emt 0:00:22]} 35. Ke2 {[%emt 0:00:20]} g4 {[%emt 0:00:55]} 36. Kf1 {[%emt 0:05:58]} Kg7 {[%emt 0:00:09]} 37. Kg2 {[%emt 0:00:23]} Be1 {[%emt 0:00:16]} 38. Kf1 {[%emt 0:05:48]} Bxf2 {[%emt 0:00:02]} 39. Rxf7+ {[%emt 0:00:11]} Rxf7 {[%emt 0:00:05]} 40. Bxf7 {[%emt 0:00:07]} Bxe3 {[%emt 0:00:18]} 41. Bh5 {[%emt 0:00:25]} Kf6 {[%emt 0:00:34]} 42. Bxg4 {[%emt 0:00:07]} Kg5 {[%emt 0:00:27]} 43. Bd7 {[%emt 0:00:17]} Bc5 {[%emt 0:00:25]} 44. Ke2 {[%emt 0:00:17]} Bg1 {[%emt 0:00:12]} 45. Kf1 {[%emt 0:00:13]} Bc5 {[%emt 0:00:35]} 46. Ke2 {[%emt 0:00:16]} Bg1 {[%emt 0:00:02]} 47. Kf3 {[%emt 0:00:06]} Bb6 {[%emt 0:00:56]} 48. h4+ {[%emt 0:00:17]} Kf6 {[%emt 0:00:01]} 49. Bb5 {[%emt 0:00:58]} Bc7 {[%emt 0:00:58]} 50. Bd3 {[%emt 0:00:22]} Bd6 {[%emt 0:00:51]} 51. Be4 {[%emt 0:00:06]} Ba3 {[%emt 0:00:14]} 52. Kg4 {[%emt 0:00:09]} Bd6 {[%emt 0:00:20]} 53. Kh3 {[%emt 0:00:08]} Kg7 {[%emt 0:00:21]} 54. g4 {[%emt 0:00:11]} Kf6 {[%emt 0:00:13]} 55. Bc2 {[%emt 0:00:19]} Bc7 {[%emt 0:00:09]} 56. Kg2 {[%emt 0:00:06]} Bd6 {[%emt 0:00:28]} 57. Kf3 {[%emt 0:00:08]} Bc7 {[%emt 0:00:10]} 58. Bd1 {[%emt 0:00:53]} Bb8 {[%emt 0:00:09]} 1/2-1/2

[Event "VIII Open Semana Santa-B 2024"]
[Site "San Vicente del Raspeig"]
[Date "2024.03.31"]
[Round "8.2"]
[White "Carretero Ajo, Jesus"]
[Black "Gutierrez Lupion, Nuria"]
[Result "1-0"]
[ECO "B22"]
[WhiteElo "1876"]
[BlackElo "1785"]
[Annotator "NA RC COMBH"]
[PlyCount "58"]
[EventDate "2024.03.27"]
[EventType "swiss"]
[EventCountry "ESP"]
[SourceTitle "playchess.com"]
[Source "ChessBase"]
[SourceQuality "1"]
[TimeControl "5400+30"]

1. e4 {[%emt 0:00:08]} c5 {[%emt 0:00:38]} 2. c3 {[%emt 0:00:07]} Nf6 {[%emt 0:00:23]} 3. e5 {[%emt 0:00:09]} Nd5 {[%emt 0:00:04]} 4. Nf3 {[%emt 0:00:10]} Nc6 {[%emt 0:00:16]} 5. d4 {[%emt 0:00:23]} cxd4 {[%emt 0:00:12]} 6. cxd4 {[%emt 0:00:09]} d6 {[%emt 0:00:48]} 7. Bc4 {[%emt 0:00:10]} Nb6 {[%emt 0:01:42]} 8. Bb5 {[%emt 0:02:46]} a6 {[%emt 0:06:26]} 9. Bxc6+ {[%emt 0:00:18]} bxc6 {[%emt 0:00:06]} 10. exd6 {[%emt 0:00:10]} Qxd6 {[%emt 0:01:00]} 11. O-O {[%emt 0:00:18]} g6 {[%emt 0:01:34]} 12. Nc3 {[%emt 0:04:07]} Bg7 {[%emt 0:01:10]} 13. Re1 {[%emt 0:01:55]} O-O {[%emt 0:01:43]} 14. Bg5 {[%emt 0:04:09]} Re8 {[%emt 0:03:44]} 15. Ne4 {[%emt 0:17:15]} Qd8 {[%emt 0:16:25]} 16. Rc1 {[%emt 0:01:24]} Bg4 {[%emt 0:10:02]} 17. Rxc6 {[%emt 0:03:16]} Bxf3 {[%emt 0:04:39]} 18. Qxf3 {[%emt 0:00:36]} Qxd4 {[%emt 0:00:34]} 19. Nc3 {[%emt 0:08:18]} Qb4 {[%emt 0:08:31]} 20. a3 {[%emt 0:08:31]} Qxb2 {[%emt 0:03:04]} 21. Rb1 {[%emt 0:00:54]} Qxa3 {[%emt 0:01:47]} 22. Rbxb6 {[%emt 0:01:39]} Rab8 {[%emt 0:06:43]} 23. Rxb8 {[%emt 0:04:55]} Rxb8 {[%emt 0:00:17]} 24. h3 {[%emt 0:00:07]} h6 {[%emt 0:07:05]} 25. Bd2 {[%emt 0:06:00]} a5 {[%emt 0:11:01]} 26. Qd5 {[%emt 0:10:28]} a4 {[%emt 0:07:37]} 27. Rxg6 {[%emt 0:00:25]} Qb3 {[%emt 0:04:25]} 28. Bxh6 {[%emt 0:06:24]} Kh7 {[%emt 0:01:21]} 29. Rxg7+ {[%emt 0:00:51]} Kxh6 {[%emt 0:00:02]} 1-0

[Event "VIII Open Semana Santa-B 2024"]
[Site "San Vicente del Raspeig"]
[Date "2024.03.31"]
[Round "8.3"]
[White "Garcia Ruano, Juan Carlos"]
[Black "Pardo Ruiz, Beatriz"]
[Result "1/2-1/2"]
[ECO "B44"]
[WhiteElo "1885"]
[BlackElo "1757"]
[Annotator "NA RC COMBH"]
[PlyCount "152"]
[EventDate "2024.03.27"]
[EventType "swiss"]
[EventCountry "ESP"]
[SourceTitle "playchess.com"]
[Source "ChessBase"]
[SourceQuality "1"]
[TimeControl "5400+30"]

1. e4 {[%emt 0:00:14]} c5 {[%emt 0:00:07]} 2. Nf3 {[%emt 0:00:19]} e6 {[%emt 0:00:06]} 3. d4 {[%emt 0:00:41]} cxd4 {[%emt 0:00:06]} 4. Nxd4 {[%emt 0:00:09]} Nc6 {[%emt 0:00:03]} 5. Be3 {[%emt 0:01:16]} a6 {[%emt 0:02:03]} 6. Be2 {[%emt 0:01:52]} Nf6 {[%emt 0:00:38]} 7. Nd2 {[%emt 0:00:27]} Be7 {[%emt 0:07:14]} 8. O-O {[%emt 0:00:13]} O-O {[%emt 0:00:31]} 9. c3 {[%emt 0:04:02] B44: Sicilian: Taimanov: 5 Nb5.} Qc7 {[%emt 0:05:46]} 10. Nxc6 {[%emt 0:06:11]} bxc6 {[%emt 0:00:33]} 11. Bd3 {[%emt 0:03:27]} d5 {[%emt 0:05:09]} 12. Qf3 {[%emt 0:05:21]} c5 {[%emt 0:10:26]} 13. exd5 {[%emt 0:03:26]} exd5 {[%emt 0:00:57]} 14. h3 {[%emt 0:02:08]} Bb7 {[%emt 0:01:50]} 15. Bf4 {[%emt 0:03:20]} Qb6 {[%emt 0:09:03]} 16. Qd1 {[%emt 0:01:52]} Qc6 {[%emt 0:03:23]} 17. f3 {[%emt 0:01:39]} Nh5 {[%emt 0:03:42]} 18. Bh2 {[%emt 0:02:31]} Qb6 {[%emt 0:01:42]} 19. Qb3 {[%emt 0:00:55]} Qa7 {[%emt 0:00:43]} 20. c4 {[%emt 0:00:47]} Rfe8 {[%emt 0:16:51]} 21. Kh1 {[%emt 0:01:23]} d4 {[%emt 0:00:13]} 22. Rae1 {[%emt 0:08:28]} Bh4 {[%emt 0:01:20]} 23. Rxe8+ {[%emt 0:00:05]} Rxe8 {[%emt 0:00:21]} 24. Qa4 {[%emt 0:00:30]} Qa8 {[%emt 0:00:58]} 25. Be4 {[%emt 0:01:53]} Rc8 {[%emt 0:03:34]} 26. Qd7 {[%emt 0:01:03]} Bxe4 {[%emt 0:01:13]} 27. Nxe4 {[%emt 0:02:53]} Nf6 {[%emt 0:02:28]} 28. Nxf6+ {[%emt 0:00:08]} Bxf6 {[%emt 0:00:08]} 29. Re1 {[%emt 0:03:56]} Rd8 {[%emt 0:03:12]} 30. Qc7 {[%emt 0:01:21]} Qc8 {[%emt 0:03:11]} 31. Qxc8 {[%emt 0:00:21]} Rxc8 {[%emt 0:00:07]} 32. Bd6 {[%emt 0:00:20]} h6 {[%emt 0:00:10]} 33. b3 {[%emt 0:00:23]} Rc6 {[%emt 0:00:31]} 34. Bf4 {[%emt 0:00:51]} Re6 {[%emt 0:00:29]} 35. Rxe6 {[%emt 0:01:05]} fxe6 {[%emt 0:00:03]} 36. Kg1 {[%emt 0:00:28]} e5 {[%emt 0:00:35]} 37. Bd2 {[%emt 0:00:20]} Kf7 {[%emt 0:00:20]} 38. Kf2 {[%emt 0:00:22]} Kg6 {[%emt 0:01:36]} 39. Ke2 {[%emt 0:00:24]} Bg5 {[%emt 0:00:27]} 40. Be1 {[%emt 0:01:15]} Kf5 {[%emt 0:00:25]} 41. Kd3 {[%emt 0:01:20]} Be7 {[%emt 0:02:22]} 42. Bd2 {[%emt 0:00:41]} Bg5 {[%emt 0:00:06]} 43. Be1 {[%emt 0:00:13]} Kf4 {[%emt 0:00:37]} 44. Bf2 {[%emt 0:00:14]} Be7 {[%emt 0:00:59]} 45. Be1 {[%emt 0:02:36]} Bd8 {[%emt 0:00:32]} 46. Bf2 {[%emt 0:00:18]} Ba5 {[%emt 0:00:14]} 47. Bh4 {[%emt 0:02:48]} g5 {[%emt 0:01:54]} 48. Bf2 {[%emt 0:00:06]} Bc3 {[%emt 0:00:04]} 49. h4 {[%emt 0:07:00]} Bb4 {[%emt 0:01:37]} 50. hxg5 {[%emt 0:00:27]} hxg5 {[%emt 0:00:58]} 51. Ke2 {[%emt 0:00:43]} g4 {[%emt 0:01:07]} 52. Bh4 {[%emt 0:03:11]} gxf3+ {[%emt 0:01:27]} 53. gxf3 {[%emt 0:00:09]} e4 {[%emt 0:00:33]} 54. fxe4 {[%emt 0:00:06]} Kxe4 {[%emt 0:00:06]} 55. Bf6 {[%emt 0:00:52]} d3+ {[%emt 0:00:58]} 56. Kd1 {[%emt 0:00:11]} d2 {[%emt 0:00:42]} 57. Ke2 {[%emt 0:00:59]} Kf5 {[%emt 0:03:33]} 58. Bg7 {[%emt 0:00:36]} Kg6 {[%emt 0:02:11]} 59. Bb2 {[%emt 0:01:09]} Kf5 {[%emt 0:00:56]} 60. a3 {[%emt 0:00:17]} Ba5 {[%emt 0:00:08]} 61. Bg7 {[%emt 0:00:10]} Ke4 {[%emt 0:00:55]} 62. Bh6 {[%emt 0:01:03]} d1=Q+ {[%emt 0:00:44]} 63. Kxd1 {[%emt 0:00:13]} Kd3 {[%emt 0:00:19]} 64. Kc1 {[%emt 0:01:02]} Kd4 {[%emt 0:01:58]} 65. Kc2 {[%emt 0:00:17]} Bb6 {[%emt 0:00:18]} 66. Bg7+ {[%emt 0:00:14]} Ke4 {[%emt 0:00:43]} 67. Kc3 {[%emt 0:00:17]} a5 {[%emt 0:00:17]} 68. Bf8 {[%emt 0:01:59]} Ke5 {[%emt 0:00:49]} 69. b4 {[%emt 0:01:44]} axb4+ {[%emt 0:00:39]} 70. axb4 {[%emt 0:00:05]} cxb4+ {[%emt 0:00:23]} 71. Kxb4 {[%emt 0:00:05]} Ke6 {[%emt 0:00:31]} 72. Kb5 {[%emt 0:00:10]} Bd4 {[%emt 0:00:27]} 73. Kc6 {[%emt 0:00:08]} Be3 {[%emt 0:00:33]} 74. Bc5 {[%emt 0:00:54]} Bg5 {[%emt 0:00:25]} 75. Kc7 {[%emt 0:02:31]} Bf4+ {[%emt 0:00:21]} 76. Kb7 {[%emt 0:00:07]} Bg5 $16 {[%emt 0:00:20]} (76... Kd7 $11) 1/2-1/2

[Event "VIII Open Semana Santa-B 2024"]
[Site "San Vicente del Raspeig"]
[Date "2024.03.31"]
[Round "8.4"]
[White "Vila Castillo, Jaime"]
[Black "Ashton, Alannah"]
[Result "1-0"]
[ECO "E61"]
[WhiteElo "1812"]
[BlackElo "1839"]
[Annotator "NA RC COMBH"]
[PlyCount "189"]
[EventDate "2024.03.27"]
[EventType "swiss"]
[EventCountry "ESP"]
[SourceTitle "playchess.com"]
[Source "ChessBase"]
[SourceQuality "1"]
[TimeControl "5400+30"]

1. Nf3 {[%emt 0:00:03]} Nf6 {[%emt 0:00:03]} 2. d4 {[%emt 1:31:27]} g6 {[%emt 1:31:27]} 3. Bf4 {[%emt 0:00:30]} Bg7 {[%emt 0:00:30]} 4. e3 {[%emt 0:00:00]} O-O {[%emt 0:00:00]} 5. h3 {[%emt 0:00:00]} d6 {[%emt 0:00:00]} 6. Be2 {[%emt 0:00:00]} Nbd7 {[%emt 0:00:00]} 7. c4 {[%emt 0:00:00]} c5 {[%emt 0:00:00]} 8. Nc3 {[%emt 0:00:00]} b6 {[%emt 0:00:00]} 9. O-O {[%emt 0:00:00]} Bb7 {[%emt 0:00:00]} 10. Qc2 {[%emt 0:00:00] E61: King's Indian: Early deviations for White, including Smyslov System.} Rc8 {[%emt 0:00:00]} 11. d5 {[%emt 0:00:00]} a6 {[%emt 0:00:00]} 12. a4 {[%emt 0:00:00]} a5 {[%emt 0:00:00]} 13. Rad1 {[%emt 0:00:00]} Nb8 {[%emt 0:00:00]} 14. Rfe1 {[%emt 0:00:00]} Na6 {[%emt 0:00:00]} 15. Na2 {[%emt 0:00:00]} Nb4 {[%emt 0:00:00]} 16. Nxb4 {[%emt 0:00:00]} cxb4 {[%emt 0:00:00]} 17. e4 {[%emt 0:00:00]} Nd7 {[%emt 0:00:00]} 18. Nd2 {[%emt 0:00:00]} Ba6 {[%emt 0:00:00]} 19. Be3 {[%emt 0:00:00]} b5 {[%emt 0:00:00]} 20. axb5 {[%emt 0:00:00]} Bxb5 {[%emt 0:00:00]} 21. Qb3 {[%emt 0:00:00]} Ba6 {[%emt 0:00:00]} 22. Nf3 {[%emt 0:00:00]} Nb6 {[%emt 0:00:00]} 23. Rc1 {[%emt 0:00:00]} Nd7 {[%emt 0:10:00]} 24. Bd4 {[%emt 0:00:00]} Bxd4 {[%emt 0:00:00]} 25. Nxd4 {[%emt 0:00:00]} Nc5 {[%emt 0:00:00]} 26. Qf3 {[%emt 0:00:00]} Bb7 {[%emt 0:00:00]} 27. Nb3 {[%emt 0:00:00]} Nxb3 {[%emt 0:00:00]} 28. Qxb3 {[%emt 0:00:00]} Qb6 {[%emt 0:00:00]} 29. Bg4 {[%emt 0:00:00]} Rc7 {[%emt 0:00:00]} 30. Qe3 {[%emt 0:00:00]} Qxe3 {[%emt 0:00:00]} 31. Rxe3 {[%emt 0:00:00]} h5 {[%emt 0:00:00]} 32. Be2 {[%emt 0:00:00]} a4 {[%emt 0:00:16]} 33. Ra1 {[%emt 0:00:00]} Ra8 {[%emt 0:00:05]} 34. f3 {[%emt 0:00:00]} Ra5 {[%emt 0:00:37]} 35. Rb3 {[%emt 0:00:00]} axb3 {[%emt 0:04:26]} 36. Rxa5 {[%emt 0:00:00]} Rc8 {[%emt 0:00:21]} 37. Rb5 {[%emt 0:00:00]} Ra8 {[%emt 0:00:29]} 38. Rxb7 {[%emt 0:00:00]} Ra2 {[%emt 0:00:06]} 39. Rxb4 {[%emt 0:00:00]} Rxb2 {[%emt 0:00:06]} 40. Kf2 {[%emt 0:00:00]} Kg7 {[%emt 0:00:33]} 41. g4 {[%emt 0:00:00]} h4 {[%emt 0:00:29]} 42. Ke3 {[%emt 0:00:00]} Rb1 {[%emt 0:00:33]} 43. Bd3 {[%emt 0:00:00]} Rb2 {[%emt 0:00:31]} 44. e5 {[%emt 0:00:31]} g5 {[%emt 0:00:40]} 45. exd6 {[%emt 0:00:42]} exd6 {[%emt 0:00:03]} 46. Kd4 {[%emt 0:00:44]} Rh2 {[%emt 0:00:33]} 47. Rxb3 {[%emt 0:00:15]} Rxh3 {[%emt 0:00:04]} 48. Be4 {[%emt 0:01:33]} Rh1 {[%emt 0:00:15]} 49. f4 {[%emt 0:01:48]} Rd1+ {[%emt 0:01:21]} 50. Rd3 {[%emt 0:00:10]} Rg1 {[%emt 0:00:16]} 51. fxg5 {[%emt 0:00:46]} Rxg4 {[%emt 0:00:22]} 52. Rh3 {[%emt 0:00:31]} Kf8 {[%emt 0:01:04]} 53. Ke3 {[%emt 0:00:17]} Ke7 {[%emt 0:00:12]} 54. Kf3 {[%emt 0:00:43]} Rxg5 {[%emt 0:00:23]} 55. Rxh4 {[%emt 0:00:06]} Rg1 {[%emt 0:00:08]} 56. Bd3 {[%emt 0:01:04]} Rg7 {[%emt 0:00:44]} 57. Bf5 {[%emt 0:00:20]} Rg1 {[%emt 0:00:15]} 58. Bd3 {[%emt 0:00:18]} Rg7 {[%emt 0:00:06]} 59. Re4+ {[%emt 0:00:08]} Kd8 {[%emt 0:00:21]} 60. Kf4 {[%emt 0:00:06]} Rg6 {[%emt 0:00:50]} 61. Kf5 {[%emt 0:01:04]} Rh6 {[%emt 0:00:17]} 62. Kg5 {[%emt 0:00:41]} Rg6+ {[%emt 0:00:12]} 63. Kf5 {[%emt 0:00:40]} Rh6 {[%emt 0:00:05]} 64. Bc2 {[%emt 0:01:10]} Rh2 {[%emt 0:02:33]} 65. Ba4 {[%emt 0:00:26]} Rf2+ {[%emt 0:00:17]} 66. Rf4 {[%emt 0:00:21]} Ra2 {[%emt 0:00:09]} 67. Bc6 {[%emt 0:00:29]} Ke7 {[%emt 0:00:58]} 68. Re4+ {[%emt 0:00:04]} Kf8 {[%emt 0:00:07]} 69. Re8+ {[%emt 0:00:12]} Kg7 {[%emt 0:00:03]} 70. Rd8 {[%emt 0:00:07]} Rf2+ {[%emt 0:00:10]} 71. Ke4 {[%emt 0:00:07]} Rf6 {[%emt 0:00:23]} 72. Bd7 {[%emt 0:02:08]} Kg6 {[%emt 0:00:33]} 73. Rg8+ {[%emt 0:00:45]} Kh7 {[%emt 0:00:06]} 74. Rg4 {[%emt 0:00:20]} Rf1 {[%emt 0:00:32]} 75. Bf5+ {[%emt 0:00:26]} Kh8 {[%emt 0:00:14]} 76. Rf4 {[%emt 0:01:15]} Rc1 {[%emt 0:00:34]} 77. Kd4 {[%emt 0:00:11]} Kg7 {[%emt 0:00:13]} 78. Rf3 {[%emt 0:00:48]} Kg8 {[%emt 0:00:49]} 79. Ra3 {[%emt 0:00:13]} Rf1 {[%emt 0:00:26]} 80. Be4 {[%emt 0:00:26]} Rf4 {[%emt 0:00:51]} 81. Rf3 {[%emt 0:00:28]} Rg4 {[%emt 0:00:20]} 82. Rf6 {[%emt 0:00:08]} Kg7 {[%emt 0:00:18]} 83. Rxd6 {[%emt 0:00:13]} f5 {[%emt 0:00:03] [#]} 84. Re6 $1 {[%emt 0:00:09]} Kf7 {[%emt 0:00:40]} 85. c5 {[%emt 0:00:08]} fxe4 {[%emt 0:00:13]} 86. Rxe4 {[%emt 0:00:06]} Rg1 {[%emt 0:00:10]} 87. d6 {[%emt 0:00:29]} Rd1+ {[%emt 0:00:12]} 88. Ke5 {[%emt 0:00:20]} Ke8 {[%emt 0:00:21]} 89. Ke6 {[%emt 0:00:17]} Kd8 {[%emt 0:00:34]} 90. c6 {[%emt 0:00:26]} Rc1 {[%emt 0:00:30]} 91. c7+ {[%emt 0:00:20]} Kc8 {[%emt 0:00:03]} 92. d7+ {[%emt 0:00:29]} Kxc7 {[%emt 0:00:10]} 93. Ke7 {[%emt 0:00:04]} Rd1 {[%emt 0:00:50]} 94. Rc4+ {[%emt 0:00:05]} Kb7 {[%emt 0:00:24]} 95. d8=Q {[%emt 0:00:07]} ({Nicht} 95. d8=B Rg1 $14) 1-0

[Event "VIII Open Semana Santa-B 2024"]
[Site "San Vicente del Raspeig"]
[Date "2024.03.31"]
[Round "8.5"]
[White "Elizondo Marquet, Juan Marcos"]
[Black "Van Ree, Thailo"]
[Result "0-1"]
[ECO "A25"]
[WhiteElo "1813"]
[BlackElo "1841"]
[Annotator "NA RC COMBH"]
[PlyCount "42"]
[EventDate "2024.03.27"]
[EventType "swiss"]
[EventCountry "ESP"]
[SourceTitle "playchess.com"]
[Source "ChessBase"]
[SourceQuality "1"]
[TimeControl "5400+30"]

1. c4 {[%emt 0:00:01]} e5 {[%emt 0:00:50]} 2. g3 {[%emt 0:00:06]} Nc6 {[%emt 0:00:18]} 3. Bg2 {[%emt 0:00:27]} Bc5 {[%emt 0:00:39]} 4. Nc3 {[%emt 0:01:39]} d6 {[%emt 0:00:26]} 5. e3 {[%emt 0:01:38]} a6 {[%emt 0:00:32]} 6. Nge2 {[%emt 0:00:22]} Ba7 {[%emt 0:00:35]} 7. O-O {[%emt 0:00:13]} h5 {[%emt 0:00:52]} 8. h4 {[%emt 0:00:58]} g5 {[%emt 0:00:13]} 9. hxg5 {[%emt 0:01:31]} h4 {[%emt 0:00:36]} 10. d4 {[%emt 0:00:31]} hxg3 {[%emt 0:00:25]} 11. Nxg3 {[%emt 0:10:50]} Qxg5 {[%emt 0:00:39]} 12. Nd5 {[%emt 0:02:17]} Qh4 {[%emt 0:07:58]} 13. Re1 {[%emt 0:00:51]} Bg4 {[%emt 0:00:56]} 14. Qd3 {[%emt 0:03:06]} O-O-O {[%emt 0:03:16]} 15. b4 {[%emt 0:05:05]} exd4 {[%emt 0:00:16]} 16. exd4 {[%emt 0:01:41]} Qh2+ {[%emt 0:07:33]} 17. Kf1 {[%emt 0:00:09]} Bh3 {[%emt 0:00:18]} 18. Bxh3+ {[%emt 0:03:55]} Qxh3+ {[%emt 0:00:13]} 19. Kg1 {[%emt 0:00:16]} Bxd4 {[%emt 0:01:14]} 20. Rb1 {[%emt 0:01:07]} Qh2+ {[%emt 0:03:00]} 21. Kf1 {[%emt 0:00:05]} Qxf2# {[%emt 1:10:11]} 0-1